[Event "Titled Tuesday Blitz August 16 Early 2022"]
[White "Kambrath, Yannick"]
[Black "Kuznetsova, Olga"]
[WhiteFideId "20632525"]
[BlackFideId "4191323"]
[WhiteElo "2236"]
[BlackElo "2134"]
[Result "1-0"]
[Round "10"]
[TimeControl "180+2"]
[Date "2022.08.18"]
[WhiteClock "0:00:00"]
[BlackClock "0:00:00"]

1. d4 {[%clk 0:00:00]}  Nf6 {[%clk 0:00:00]} 2. c4 {[%clk 0:00:00]}  e6 {[%clk 0:00:00]} 3. Nf3 {[%clk 0:00:00]}  d5 {[%clk 0:00:00]} 4. g3 {[%clk 0:00:00]}  Be7 {[%clk 0:00:00]} 5. Bg2 {[%clk 0:00:00]}  O-O {[%clk 0:00:00]} 6. O-O {[%clk 0:00:00]}  dxc4 {[%clk 0:00:00]} 7. Qc2 {[%clk 0:00:00]}  b5 {[%clk 0:00:00]} 8. a4 {[%clk 0:00:00]}  b4 {[%clk 0:00:00]} 9. Nbd2 {[%clk 0:00:00]}  Bb7 {[%clk 0:00:00]} 10. Nxc4 {[%clk 0:00:00]}  c5 {[%clk 0:00:00]} 11. dxc5 {[%clk 0:00:00]}  Be4 {[%clk 0:00:00]} 12. Qd1 {[%clk 0:00:00]}  Bxc5 {[%clk 0:00:00]} 13. Bg5 {[%clk 0:00:00]}  Qxd1 {[%clk 0:00:00]} 14. Rfxd1 {[%clk 0:00:00]}  Nbd7 {[%clk 0:00:00]} 15. Nfe5 {[%clk 0:00:00]}  Bxg2 {[%clk 0:00:00]} 16. Nxd7 {[%clk 0:00:00]}  Nxd7 {[%clk 0:00:00]} 17. Kxg2 {[%clk 0:00:00]}  Nb6 {[%clk 0:00:00]} 18. Nxb6 {[%clk 0:00:00]}  axb6 {[%clk 0:00:00]} 19. b3 {[%clk 0:00:00]}  f6 {[%clk 0:00:00]} 20. Be3 {[%clk 0:00:00]}  Bxe3 {[%clk 0:00:00]} 21. fxe3 {[%clk 0:00:00]}  Rfd8 {[%clk 0:00:00]} 22. Kf3 {[%clk 0:00:00]}  Kf7 {[%clk 0:00:00]} 23. Rxd8 {[%clk 0:00:00]}  Rxd8 {[%clk 0:00:00]} 24. Rc1 {[%clk 0:00:00]}  Rd5 {[%clk 0:00:00]} 25. Rc7+ {[%clk 0:00:00]}  Kg6 {[%clk 0:00:00]} 26. Rc6 {[%clk 0:00:00]}  b5 {[%clk 0:00:00]} 27. a5 {[%clk 0:00:00]}  Rf5+ {[%clk 0:00:00]} 28. Ke4 {[%clk 0:00:00]}  Rf2 {[%clk 0:00:00]} 29. Kd3 {[%clk 0:00:00]}  Rxh2 {[%clk 0:00:00]} 30. a6 {[%clk 0:00:00]}  Rh1 {[%clk 0:00:00]} 31. a7 {[%clk 0:00:00]}  Ra1 {[%clk 0:00:00]} 32. Rc7 {[%clk 0:00:00]}  h5 {[%clk 0:00:00]} 33. Kd4 {[%clk 0:00:00]}  Kh6 {[%clk 0:00:00]} 34. Kc5 {[%clk 0:00:00]}  g5 {[%clk 0:00:00]} 35. Kb6 {[%clk 0:00:00]}  h4 {[%clk 0:00:00]} 36. gxh4 {[%clk 0:00:00]}  gxh4 {[%clk 0:00:00]} 37. Kb7 {[%clk 0:00:00]}  h3 {[%clk 0:00:00]} 38. Rc8 {[%clk 0:00:00]}  Kh7 {[%clk 0:00:00]} 39. a8=Q {[%clk 0:00:00]}  Rxa8 {[%clk 0:00:00]} 40. Kxa8 {[%clk 0:00:00]} 1-0


[Site "https://www.chess.com"]

[Event "Titled Tuesday Blitz August 16 Early 2022"]
[White "Kiseljova, Marya"]
[Black "Johnson, Ben"]
[WhiteFideId "4155009"]
[BlackFideId "2010917"]
[WhiteElo "1697"]
[BlackElo "2050"]
[Result "1-0"]
[Round "10"]
[TimeControl "180+2"]
[Date "2022.08.18"]
[WhiteClock "0:00:00"]
[BlackClock "0:00:00"]

1. d4 {[%clk 0:00:00]}  Nf6 {[%clk 0:00:00]} 2. c4 {[%clk 0:00:00]}  e6 {[%clk 0:00:00]} 3. g3 {[%clk 0:00:00]}  d5 {[%clk 0:00:00]} 4. Nf3 {[%clk 0:00:00]}  Bb4+ {[%clk 0:00:00]} 5. Nbd2 {[%clk 0:00:00]}  O-O {[%clk 0:00:00]} 6. Bg2 {[%clk 0:00:00]}  Nbd7 {[%clk 0:00:00]} 7. O-O {[%clk 0:00:00]}  b6 {[%clk 0:00:00]} 8. cxd5 {[%clk 0:00:00]}  exd5 {[%clk 0:00:00]} 9. Qa4 {[%clk 0:00:00]}  Bd6 {[%clk 0:00:00]} 10. Qc6 {[%clk 0:00:00]}  Rb8 {[%clk 0:00:00]} 11. b3 {[%clk 0:00:00]}  Bb7 {[%clk 0:00:00]} 12. Qc2 {[%clk 0:00:00]}  c5 {[%clk 0:00:00]} 13. Ba3 {[%clk 0:00:00]}  Rc8 {[%clk 0:00:00]} 14. Qf5 {[%clk 0:00:00]}  Qe7 {[%clk 0:00:00]} 15. Rfe1 {[%clk 0:00:00]}  g6 {[%clk 0:00:00]} 16. Qb1 {[%clk 0:00:00]}  Ne4 {[%clk 0:00:00]} 17. Nxe4 {[%clk 0:00:00]}  dxe4 {[%clk 0:00:00]} 18. Nd2 {[%clk 0:00:00]}  f5 {[%clk 0:00:00]} 19. Nc4 {[%clk 0:00:00]}  Bb8 {[%clk 0:00:00]} 20. dxc5 {[%clk 0:00:00]}  Nxc5 {[%clk 0:00:00]} 21. Qb2 {[%clk 0:00:00]}  Bd5 {[%clk 0:00:00]} 22. Rac1 {[%clk 0:00:00]}  Bxc4 {[%clk 0:00:00]} 23. Rxc4 {[%clk 0:00:00]}  Be5 {[%clk 0:00:00]} 24. Qc1 {[%clk 0:00:00]}  Bd6 {[%clk 0:00:00]} 25. Rd1 {[%clk 0:00:00]}  Rfd8 {[%clk 0:00:00]} 26. Bf1 {[%clk 0:00:00]}  Rb8 {[%clk 0:00:00]} 27. e3 {[%clk 0:00:00]}  Ne6 {[%clk 0:00:00]} 28. Bxd6 {[%clk 0:00:00]}  Rxd6 {[%clk 0:00:00]} 29. Rc8+ {[%clk 0:00:00]}  Rd8 {[%clk 0:00:00]} 30. Rxb8 {[%clk 0:00:00]}  Rxb8 {[%clk 0:00:00]} 31. Bc4 {[%clk 0:00:00]}  Rf8 {[%clk 0:00:00]} 32. Qd2 {[%clk 0:00:00]}  Kg7 {[%clk 0:00:00]} 33. Qc3+ {[%clk 0:00:00]}  Kh6 {[%clk 0:00:00]} 34. h4 {[%clk 0:00:00]}  g5 {[%clk 0:00:00]} 35. hxg5+ {[%clk 0:00:00]}  Nxg5 {[%clk 0:00:00]} 36. Kg2 {[%clk 0:00:00]}  Kg6 {[%clk 0:00:00]} 37. Rh1 {[%clk 0:00:00]}  Qf6 {[%clk 0:00:00]} 38. Qb4 {[%clk 0:00:00]}  Nf3 {[%clk 0:00:00]} 39. Be2 {[%clk 0:00:00]}  Ng5 {[%clk 0:00:00]} 40. Bh5+ {[%clk 0:00:00]}  Kg7 {[%clk 0:00:00]} 41. Qc4 {[%clk 0:00:00]}  Nf7 {[%clk 0:00:00]} 42. Qc7 {[%clk 0:00:00]}  Kg8 {[%clk 0:00:00]} 43. Be2 {[%clk 0:00:00]}  Ne5 {[%clk 0:00:00]} 44. Bc4+ {[%clk 0:00:00]}  Nf7 {[%clk 0:00:00]} 45. Bd5 {[%clk 0:00:00]}  Kg7 {[%clk 0:00:00]} 46. a4 {[%clk 0:00:00]}  Kg6 {[%clk 0:00:00]} 47. Bc4 {[%clk 0:00:00]}  h6 {[%clk 0:00:00]} 48. Be2 {[%clk 0:00:00]}  Ng5 {[%clk 0:00:00]} 49. Bh5# {[%clk 0:00:00]} 1-0


[Site "https://www.chess.com"]

[Event "Titled Tuesday Blitz August 16 Early 2022"]
[White "Kohler, Aran"]
[Black "Veiga, Jose Francisco R P Neves"]
[WhiteFideId "1002856"]
[BlackFideId "1930087"]
[WhiteElo "2060"]
[BlackElo "2273"]
[Result "0-1"]
[Round "10"]
[TimeControl "180+2"]
[Date "2022.08.18"]
[WhiteClock "0:00:00"]
[BlackClock "0:00:00"]

1. Nf3 {[%clk 0:00:00]}  d6 {[%clk 0:00:00]} 2. d4 {[%clk 0:00:00]}  Nf6 {[%clk 0:00:00]} 3. Bg5 {[%clk 0:00:00]}  Nbd7 {[%clk 0:00:00]} 4. Nbd2 {[%clk 0:00:00]}  g6 {[%clk 0:00:00]} 5. e3 {[%clk 0:00:00]}  Bg7 {[%clk 0:00:00]} 6. Bd3 {[%clk 0:00:00]}  O-O {[%clk 0:00:00]} 7. h4 {[%clk 0:00:00]}  h6 {[%clk 0:00:00]} 8. h5 {[%clk 0:00:00]}  hxg5 {[%clk 0:00:00]} 9. hxg6 {[%clk 0:00:00]}  e5 {[%clk 0:00:00]} 10. gxf7+ {[%clk 0:00:00]}  Rxf7 {[%clk 0:00:00]} 11. Nxg5 {[%clk 0:00:00]}  Re7 {[%clk 0:00:00]} 12. Qf3 {[%clk 0:00:00]}  exd4 {[%clk 0:00:00]} 13. Bc4+ {[%clk 0:00:00]}  Kf8 {[%clk 0:00:00]} 14. Ne6+ {[%clk 0:00:00]}  Rxe6 {[%clk 0:00:00]} 15. Bxe6 {[%clk 0:00:00]}  Ne5 {[%clk 0:00:00]} 16. Qh3 {[%clk 0:00:00]}  Bxe6 {[%clk 0:00:00]} 17. Qxe6 {[%clk 0:00:00]}  dxe3 {[%clk 0:00:00]} 18. fxe3 {[%clk 0:00:00]}  Qe8 {[%clk 0:00:00]} 19. Qh3 {[%clk 0:00:00]}  Neg4 {[%clk 0:00:00]} 20. Nf1 {[%clk 0:00:00]}  Qb5 {[%clk 0:00:00]} 21. Qf3 {[%clk 0:00:00]}  Qxb2 {[%clk 0:00:00]} 22. Rd1 {[%clk 0:00:00]}  Re8 {[%clk 0:00:00]} 23. Rh4 {[%clk 0:00:00]}  Qc3+ {[%clk 0:00:00]} 24. Ke2 {[%clk 0:00:00]}  Qxc2+ {[%clk 0:00:00]} 25. Rd2 {[%clk 0:00:00]}  Qc4+ {[%clk 0:00:00]} 26. Ke1 {[%clk 0:00:00]}  Ne5 {[%clk 0:00:00]} 27. Rxc4 {[%clk 0:00:00]}  Nxf3+ {[%clk 0:00:00]} 28. gxf3 {[%clk 0:00:00]}  Re7 {[%clk 0:00:00]} 29. Kf2 {[%clk 0:00:00]}  Bh6 {[%clk 0:00:00]} 30. Rb2 {[%clk 0:00:00]}  c6 {[%clk 0:00:00]} 31. f4 {[%clk 0:00:00]}  d5 {[%clk 0:00:00]} 32. Ra4 {[%clk 0:00:00]}  Ne4+ {[%clk 0:00:00]} 33. Kf3 {[%clk 0:00:00]}  b5 {[%clk 0:00:00]} 34. Ra6 {[%clk 0:00:00]}  Rc7 {[%clk 0:00:00]} 35. Rc2 {[%clk 0:00:00]}  Bg7 {[%clk 0:00:00]} 36. Rcxc6 {[%clk 0:00:00]}  Rf7 {[%clk 0:00:00]} 37. Rc8+ {[%clk 0:00:00]}  Ke7 {[%clk 0:00:00]} 38. Rxa7+ {[%clk 0:00:00]}  Ke6 {[%clk 0:00:00]} 39. Rxf7 {[%clk 0:00:00]}  Kxf7 {[%clk 0:00:00]} 40. Rb8 {[%clk 0:00:00]}  Nd6 {[%clk 0:00:00]} 41. Rb6 {[%clk 0:00:00]}  Bf8 {[%clk 0:00:00]} 42. Nd2 {[%clk 0:00:00]}  Ke6 {[%clk 0:00:00]} 43. f5+ {[%clk 0:00:00]}  Kxf5 {[%clk 0:00:00]} 44. a3 {[%clk 0:00:00]}  Ke5 {[%clk 0:00:00]} 45. Nb3 {[%clk 0:00:00]}  Nc4 {[%clk 0:00:00]} 46. Rxb5 {[%clk 0:00:00]}  Nxa3 {[%clk 0:00:00]} 47. Ra5 {[%clk 0:00:00]}  Nc4 {[%clk 0:00:00]} 48. Ra8 {[%clk 0:00:00]}  Bd6 {[%clk 0:00:00]} 49. Nd4 {[%clk 0:00:00]}  Bc5 {[%clk 0:00:00]} 50. Re8+ {[%clk 0:00:00]}  Kd6 {[%clk 0:00:00]} 51. Re6+ {[%clk 0:00:00]}  Kd7 {[%clk 0:00:00]} 52. Rh6 {[%clk 0:00:00]}  Ne5+ {[%clk 0:00:00]} 53. Ke2 {[%clk 0:00:00]}  Ng4 {[%clk 0:00:00]} 54. Kd3 {[%clk 0:00:00]}  Nxh6 {[%clk 0:00:00]} 55. Nb3 {[%clk 0:00:00]}  Bb6 {[%clk 0:00:00]} 56. Nc1 {[%clk 0:00:00]}  Ng4 {[%clk 0:00:00]} 57. e4 {[%clk 0:00:00]}  Nf2+ {[%clk 0:00:00]} 58. Ke2 {[%clk 0:00:00]}  Nxe4 {[%clk 0:00:00]} 59. Kd3 {[%clk 0:00:00]}  Ke6 {[%clk 0:00:00]} 60. Ne2 {[%clk 0:00:00]}  Nc5+ {[%clk 0:00:00]} 61. Kd4 {[%clk 0:00:00]}  Ne4+ {[%clk 0:00:00]} 62. Kd3 {[%clk 0:00:00]}  Nd6 {[%clk 0:00:00]} 63. Nc1 {[%clk 0:00:00]}  Ke5 {[%clk 0:00:00]} 64. Nb3 {[%clk 0:00:00]}  Ne4 {[%clk 0:00:00]} 65. Nc1 {[%clk 0:00:00]}  Nf2+ {[%clk 0:00:00]} 66. Ke2 {[%clk 0:00:00]}  Ke4 {[%clk 0:00:00]} 67. Kd2 {[%clk 0:00:00]}  d4 {[%clk 0:00:00]} 68. Ne2 {[%clk 0:00:00]}  Ba5+ {[%clk 0:00:00]} 0-1


[Site "https://www.chess.com"]

[Event "Titled Tuesday Blitz August 16 Early 2022"]
[White "Koridze, Lile"]
[Black "Harsh Suresh"]
[WhiteFideId "13612514"]
[BlackFideId "45018464"]
[WhiteElo "2050"]
[BlackElo "2070"]
[Result "0-1"]
[Round "10"]
[TimeControl "180+2"]
[Date "2022.08.18"]
[WhiteClock "0:00:00"]
[BlackClock "0:00:00"]

1. d4 {[%clk 0:00:00]}  g6 {[%clk 0:00:00]} 2. c4 {[%clk 0:00:00]}  Bg7 {[%clk 0:00:00]} 3. Nc3 {[%clk 0:00:00]}  d6 {[%clk 0:00:00]} 4. e4 {[%clk 0:00:00]}  c5 {[%clk 0:00:00]} 5. Nf3 {[%clk 0:00:00]}  cxd4 {[%clk 0:00:00]} 6. Nxd4 {[%clk 0:00:00]}  Nc6 {[%clk 0:00:00]} 7. Be3 {[%clk 0:00:00]}  Nf6 {[%clk 0:00:00]} 8. Be2 {[%clk 0:00:00]}  O-O {[%clk 0:00:00]} 9. O-O {[%clk 0:00:00]}  a5 {[%clk 0:00:00]} 10. Qd2 {[%clk 0:00:00]}  a4 {[%clk 0:00:00]} 11. Rfd1 {[%clk 0:00:00]}  Qa5 {[%clk 0:00:00]} 12. f3 {[%clk 0:00:00]}  Nxd4 {[%clk 0:00:00]} 13. Bxd4 {[%clk 0:00:00]}  Be6 {[%clk 0:00:00]} 14. Nd5 {[%clk 0:00:00]}  Bxd5 {[%clk 0:00:00]} 15. cxd5 {[%clk 0:00:00]}  Qxd2 {[%clk 0:00:00]} 16. Rxd2 {[%clk 0:00:00]}  Rfc8 {[%clk 0:00:00]} 17. Bc3 {[%clk 0:00:00]}  a3 {[%clk 0:00:00]} 18. Rb1 {[%clk 0:00:00]}  Rc7 {[%clk 0:00:00]} 19. Bxf6 {[%clk 0:00:00]}  Bxf6 {[%clk 0:00:00]} 20. bxa3 {[%clk 0:00:00]}  Rxa3 {[%clk 0:00:00]} 21. Kf1 {[%clk 0:00:00]}  h5 {[%clk 0:00:00]} 22. Rb3 {[%clk 0:00:00]}  Ra4 {[%clk 0:00:00]} 23. Bb5 {[%clk 0:00:00]}  Ra8 {[%clk 0:00:00]} 24. Bd3 {[%clk 0:00:00]}  Kg7 {[%clk 0:00:00]} 25. Ke2 {[%clk 0:00:00]}  h4 {[%clk 0:00:00]} 26. h3 {[%clk 0:00:00]}  Kh6 {[%clk 0:00:00]} 27. Bb5 {[%clk 0:00:00]}  Bg5 {[%clk 0:00:00]} 28. Rdb2 {[%clk 0:00:00]}  Bc1 {[%clk 0:00:00]} 29. Rb1 {[%clk 0:00:00]}  Rxa2+ {[%clk 0:00:00]} 30. Kf1 {[%clk 0:00:00]}  Rcc2 {[%clk 0:00:00]} 0-1


[Site "https://www.chess.com"]

[Event "Titled Tuesday Blitz August 16 Early 2022"]
[White "Kosteniuk, Alexandra"]
[Black "Maiorov, Nikita"]
[WhiteFideId "4128125"]
[BlackFideId "13501720"]
[WhiteElo "2469"]
[BlackElo "2409"]
[Result "0-1"]
[Round "10"]
[TimeControl "180+1"]
[Date "2022.08.16"]
[WhiteClock "0:00:05"]
[BlackClock "0:00:09"]

1. e4 {[%clk 0:03:00]}  e5 {[%clk 0:02:55]} 2. Nf3 {[%clk 0:03:00]}  Nc6 {[%clk 0:02:54]} 3. Bc4 {[%clk 0:03:00]}  Bc5 {[%clk 0:02:53]} 4. c3 {[%clk 0:03:01]}  Nf6 {[%clk 0:02:53]} 5. d4 {[%clk 0:03:01]}  exd4 {[%clk 0:02:53]} 6. b4 {[%clk 0:03:01]}  Be7 {[%clk 0:02:51]} 7. e5 {[%clk 0:03:00]}  Ne4 {[%clk 0:02:51]} 8. b5 {[%clk 0:03:00]}  Na5 {[%clk 0:02:50]} 9. Bd5 {[%clk 0:03:00]}  Nxc3 {[%clk 0:02:45]} 10. Nxc3 {[%clk 0:03:00]}  dxc3 {[%clk 0:02:45]} 11. Qa4 {[%clk 0:02:55]}  c6 {[%clk 0:02:39]} 12. Be4 {[%clk 0:02:54]}  O-O {[%clk 0:02:32]} 13. O-O {[%clk 0:02:44]}  d5 {[%clk 0:01:25]} 14. exd6 {[%clk 0:02:44]}  Bf6 {[%clk 0:01:21]} 15. Rd1 {[%clk 0:02:14]}  c2 {[%clk 0:01:11]} 16. Qxc2 {[%clk 0:02:14]}  Bxa1 {[%clk 0:01:10]} 17. Bxh7+ {[%clk 0:02:14]}  Kh8 {[%clk 0:01:09]} 18. Bg5 {[%clk 0:02:13]}  Bf6 {[%clk 0:01:08]} 19. h4 {[%clk 0:02:06]}  Bg4 {[%clk 0:01:07]} 20. Be4 {[%clk 0:01:53]}  Bxf3 {[%clk 0:00:58]} 21. Bxf3 {[%clk 0:01:53]}  Bxg5 {[%clk 0:00:59]} 22. hxg5 {[%clk 0:01:54]}  Qxg5 {[%clk 0:00:58]} 23. Rd4 {[%clk 0:01:39]}  Kg8 {[%clk 0:00:41]} 24. Qc3 {[%clk 0:01:17]}  Qf6 {[%clk 0:00:38]} 25. Qd2 {[%clk 0:01:08]}  cxb5 {[%clk 0:00:34]} 26. d7 {[%clk 0:01:09]}  Nc4 {[%clk 0:00:33]} 27. Qd1 {[%clk 0:01:07]}  Rad8 {[%clk 0:00:30]} 28. Bxb7 {[%clk 0:01:04]}  Ne5 {[%clk 0:00:25]} 29. g3 {[%clk 0:00:35]}  Qf5 {[%clk 0:00:18]} 30. Be4 {[%clk 0:00:31]}  Qf6 {[%clk 0:00:17]} 31. Rd5 {[%clk 0:00:29]}  Nxd7 {[%clk 0:00:16]} 32. Rxd7 {[%clk 0:00:25]}  Rxd7 {[%clk 0:00:16]} 33. Qxd7 {[%clk 0:00:26]}  g6 {[%clk 0:00:15]} 34. Qxa7 {[%clk 0:00:23]}  Qe5 {[%clk 0:00:13]} 35. Qb7 {[%clk 0:00:20]}  Rd8 {[%clk 0:00:12]} 36. Kg2 {[%clk 0:00:20]}  Rd4 {[%clk 0:00:11]} 37. Bf3 {[%clk 0:00:19]}  Kg7 {[%clk 0:00:11]} 38. Qb6 {[%clk 0:00:11]}  Rd2 {[%clk 0:00:11]} 39. a3 {[%clk 0:00:10]}  Qd4 {[%clk 0:00:11]} 40. Qxd4+ {[%clk 0:00:09]}  Rxd4 {[%clk 0:00:11]} 41. Bc6 {[%clk 0:00:10]}  Ra4 {[%clk 0:00:09]} 42. Bxb5 {[%clk 0:00:10]}  Rxa3 {[%clk 0:00:09]} 43. Bc6 {[%clk 0:00:11]}  Kf6 {[%clk 0:00:10]} 44. Bd5 {[%clk 0:00:11]}  Ke7 {[%clk 0:00:10]} 45. Be4 {[%clk 0:00:11]}  Ke6 {[%clk 0:00:08]} 46. Bc6 {[%clk 0:00:11]}  Ke5 {[%clk 0:00:08]} 47. Be8 {[%clk 0:00:11]}  Ke6 {[%clk 0:00:09]} 48. Bc6 {[%clk 0:00:11]}  g5 {[%clk 0:00:09]} 49. g4 {[%clk 0:00:11]}  f6 {[%clk 0:00:08]} 50. Be4 {[%clk 0:00:11]}  Ke5 {[%clk 0:00:09]} 51. Bf5 {[%clk 0:00:11]}  Kf4 {[%clk 0:00:10]} 52. Be6 {[%clk 0:00:12]}  Ra4 {[%clk 0:00:09]} 53. Bd7 {[%clk 0:00:12]}  Rd4 {[%clk 0:00:09]} 54. Be6 {[%clk 0:00:12]}  Rd2 {[%clk 0:00:09]} 55. Bc8 {[%clk 0:00:11]}  Rd8 {[%clk 0:00:08]} 56. Bf5 {[%clk 0:00:12]}  Rh8 {[%clk 0:00:08]} 57. Be6 {[%clk 0:00:12]}  Rh4 {[%clk 0:00:09]} 58. f3 {[%clk 0:00:12]}  Rh8 {[%clk 0:00:08]} 59. Bd5 {[%clk 0:00:11]}  Rd8 {[%clk 0:00:09]} 60. Be4 {[%clk 0:00:11]}  Rd2+ {[%clk 0:00:09]} 61. Kh3 {[%clk 0:00:12]}  Ke3 {[%clk 0:00:09]} 62. Kg3 {[%clk 0:00:11]}  Rf2 {[%clk 0:00:09]} 63. Bd5 {[%clk 0:00:11]}  Rf1 {[%clk 0:00:09]} 64. Kg2 {[%clk 0:00:10]}  Rf2+ {[%clk 0:00:09]} 65. Kg3 {[%clk 0:00:11]}  Rd2 {[%clk 0:00:09]} 66. Be4 {[%clk 0:00:11]}  Rb2 {[%clk 0:00:08]} 67. Bd5 {[%clk 0:00:11]}  Rb1 {[%clk 0:00:08]} 68. Kg2 {[%clk 0:00:07]}  Kf4 {[%clk 0:00:08]} 69. Kf2 {[%clk 0:00:06]}  Rb2+ {[%clk 0:00:09]} 70. Ke1 {[%clk 0:00:05]}  Ke3 {[%clk 0:00:09]} 0-1


[Site "https://www.chess.com"]

[Event "Titled Tuesday Blitz August 16 Early 2022"]
[White "Kostiukov, Alexandr"]
[Black "Eynullayev, Atilla"]
[WhiteFideId "14108100"]
[BlackFideId "13413570"]
[WhiteElo "2202"]
[BlackElo "1936"]
[Result "1-0"]
[Round "10"]
[TimeControl "180+2"]
[Date "2022.08.18"]
[WhiteClock "0:00:00"]
[BlackClock "0:00:00"]

1. g3 {[%clk 0:00:00]}  Nf6 {[%clk 0:00:00]} 2. Bg2 {[%clk 0:00:00]}  e6 {[%clk 0:00:00]} 3. d3 {[%clk 0:00:00]}  Be7 {[%clk 0:00:00]} 4. e4 {[%clk 0:00:00]}  O-O {[%clk 0:00:00]} 5. Qe2 {[%clk 0:00:00]}  d6 {[%clk 0:00:00]} 6. Nf3 {[%clk 0:00:00]}  Nc6 {[%clk 0:00:00]} 7. O-O {[%clk 0:00:00]}  h6 {[%clk 0:00:00]} 8. d4 {[%clk 0:00:00]}  e5 {[%clk 0:00:00]} 9. dxe5 {[%clk 0:00:00]}  dxe5 {[%clk 0:00:00]} 10. Rd1 {[%clk 0:00:00]}  Bd7 {[%clk 0:00:00]} 11. Nc3 {[%clk 0:00:00]}  Qc8 {[%clk 0:00:00]} 12. Nd5 {[%clk 0:00:00]}  Bd8 {[%clk 0:00:00]} 13. c3 {[%clk 0:00:00]}  Bh3 {[%clk 0:00:00]} 14. b4 {[%clk 0:00:00]}  Bxg2 {[%clk 0:00:00]} 15. Kxg2 {[%clk 0:00:00]}  Qe6 {[%clk 0:00:00]} 16. Nh4 {[%clk 0:00:00]}  Qf5 {[%clk 0:00:00]} 17. Nxf5 {[%clk 0:00:00]} 1-0


[Site "https://www.chess.com"]

[Event "Titled Tuesday Blitz August 16 Early 2022"]
[White "Lauridsen, Jesper Morch"]
[Black "Rosenberg, Evan S"]
[WhiteFideId "1401890"]
[BlackFideId "2019299"]
[WhiteElo "2221"]
[BlackElo "1999"]
[Result "0-1"]
[Round "10"]
[TimeControl "180+2"]
[Date "2022.08.18"]
[WhiteClock "0:00:00"]
[BlackClock "0:00:00"]

1. e4 {[%clk 0:00:00]}  e6 {[%clk 0:00:00]} 2. d4 {[%clk 0:00:00]}  d5 {[%clk 0:00:00]} 3. e5 {[%clk 0:00:00]}  c5 {[%clk 0:00:00]} 4. c3 {[%clk 0:00:00]}  Nc6 {[%clk 0:00:00]} 5. Nf3 {[%clk 0:00:00]}  Qb6 {[%clk 0:00:00]} 6. Bd3 {[%clk 0:00:00]}  cxd4 {[%clk 0:00:00]} 7. O-O {[%clk 0:00:00]}  Bd7 {[%clk 0:00:00]} 8. Re1 {[%clk 0:00:00]}  Nge7 {[%clk 0:00:00]} 9. h4 {[%clk 0:00:00]}  Rc8 {[%clk 0:00:00]} 10. h5 {[%clk 0:00:00]}  h6 {[%clk 0:00:00]} 11. Na3 {[%clk 0:00:00]}  a6 {[%clk 0:00:00]} 12. Nc2 {[%clk 0:00:00]}  dxc3 {[%clk 0:00:00]} 13. bxc3 {[%clk 0:00:00]}  Na5 {[%clk 0:00:00]} 14. Be3 {[%clk 0:00:00]}  Qc7 {[%clk 0:00:00]} 15. Rb1 {[%clk 0:00:00]}  b5 {[%clk 0:00:00]} 16. a4 {[%clk 0:00:00]}  Nc4 {[%clk 0:00:00]} 17. axb5 {[%clk 0:00:00]}  Bxb5 {[%clk 0:00:00]} 18. Ncd4 {[%clk 0:00:00]}  Nxe3 {[%clk 0:00:00]} 19. Nxb5 {[%clk 0:00:00]}  Nxd1 {[%clk 0:00:00]} 20. Nxc7+ {[%clk 0:00:00]}  Rxc7 {[%clk 0:00:00]} 21. Rb8+ {[%clk 0:00:00]}  Rc8 {[%clk 0:00:00]} 22. Rxc8+ {[%clk 0:00:00]}  Nxc8 {[%clk 0:00:00]} 23. Rxd1 {[%clk 0:00:00]}  a5 {[%clk 0:00:00]} 24. Bb5+ {[%clk 0:00:00]}  Kd8 {[%clk 0:00:00]} 25. Ra1 {[%clk 0:00:00]}  Bc5 {[%clk 0:00:00]} 26. Rxa5 {[%clk 0:00:00]}  Bb6 {[%clk 0:00:00]} 27. Ra8 {[%clk 0:00:00]}  Kc7 {[%clk 0:00:00]} 28. Ba6 {[%clk 0:00:00]}  Rd8 {[%clk 0:00:00]} 29. Nd4 {[%clk 0:00:00]}  Na7 {[%clk 0:00:00]} 30. Nb5+ {[%clk 0:00:00]}  Nxb5 {[%clk 0:00:00]} 31. Rxd8 {[%clk 0:00:00]}  Kxd8 {[%clk 0:00:00]} 32. Bxb5 {[%clk 0:00:00]}  Ba5 {[%clk 0:00:00]} 33. c4 {[%clk 0:00:00]}  d4 {[%clk 0:00:00]} 34. Kf1 {[%clk 0:00:00]}  d3 {[%clk 0:00:00]} 35. c5 {[%clk 0:00:00]}  d2 {[%clk 0:00:00]} 36. Ke2 {[%clk 0:00:00]}  Bc3 {[%clk 0:00:00]} 37. f4 {[%clk 0:00:00]}  Ke7 {[%clk 0:00:00]} 38. g4 {[%clk 0:00:00]}  f6 {[%clk 0:00:00]} 39. exf6+ {[%clk 0:00:00]}  gxf6 {[%clk 0:00:00]} 40. Ba4 {[%clk 0:00:00]}  Bb4 {[%clk 0:00:00]} 41. c6 {[%clk 0:00:00]}  Kd6 {[%clk 0:00:00]} 42. g5 {[%clk 0:00:00]}  fxg5 {[%clk 0:00:00]} 43. fxg5 {[%clk 0:00:00]}  hxg5 {[%clk 0:00:00]} 44. h6 {[%clk 0:00:00]}  Bc3 {[%clk 0:00:00]} 45. h7 {[%clk 0:00:00]}  g4 {[%clk 0:00:00]} 46. Bd1 {[%clk 0:00:00]}  Kxc6 {[%clk 0:00:00]} 47. h8=Q {[%clk 0:00:00]}  Bxh8 {[%clk 0:00:00]} 48. Kxd2 {[%clk 0:00:00]}  g3 {[%clk 0:00:00]} 49. Ke3 {[%clk 0:00:00]}  Be5 {[%clk 0:00:00]} 50. Ke4 {[%clk 0:00:00]}  Bc7 {[%clk 0:00:00]} 51. Bf3 {[%clk 0:00:00]}  Kc5 {[%clk 0:00:00]} 52. Ke3 {[%clk 0:00:00]}  Kc4 {[%clk 0:00:00]} 53. Bb7 {[%clk 0:00:00]}  Kc3 {[%clk 0:00:00]} 54. Bf3 {[%clk 0:00:00]}  Be5 {[%clk 0:00:00]} 55. Be4 {[%clk 0:00:00]}  Kb2 {[%clk 0:00:00]} 56. Bf3 {[%clk 0:00:00]}  Kc1 {[%clk 0:00:00]} 57. Ke2 {[%clk 0:00:00]}  Bf4 {[%clk 0:00:00]} 58. Bg2 {[%clk 0:00:00]}  e5 {[%clk 0:00:00]} 59. Bf3 {[%clk 0:00:00]}  Kc2 {[%clk 0:00:00]} 60. Be4+ {[%clk 0:00:00]}  Kc3 {[%clk 0:00:00]} 61. Bg2 {[%clk 0:00:00]}  Kd4 {[%clk 0:00:00]} 62. Bb7 {[%clk 0:00:00]}  e4 {[%clk 0:00:00]} 0-1


[Site "https://www.chess.com"]